[Event "Czech Juniors Boys 2024"]
[Site "Jaromerice nad Rokytnou"]
[Date "2024.03.14"]
[Round "9.1"]
[White "Skypala, Ondrej"]
[Black "Lang, Simon"]
[Result "0-1"]
[ECO "A37"]
[WhiteElo "2234"]
[BlackElo "2043"]
[Annotator "RC"]
[PlyCount "158"]
[EventDate "2024.03.10"]
[EventType "tourn"]
[EventCountry "CZE"]
[SourceTitle "playchess.com"]
[Source "ChessBase"]
[SourceQuality "1"]
[TimeControl "40/5400+30:1800+30"]

1. c4 {[%emt 0:00:02]} c5 {[%emt 0:00:45]} 2. g3 {[%emt 0:00:05]} Nc6 {[%emt 0:00:23]} 3. Bg2 {[%emt 0:00:04]} g6 {[%emt 0:00:18]} 4. Nf3 {[%emt 0:00:05]} Bg7 {[%emt 0:00:22]} 5. O-O {[%emt 0:00:06]} e5 {[%emt 0:01:39]} 6. Nc3 {[%emt 0:00:13]} Nge7 {[%emt 0:00:31]} 7. d3 {[%emt 0:02:27]} d6 {[%emt 0:01:12]} 8. Rb1 {[%emt 0:04:54]} O-O {[%emt 0:01:57]} 9. a3 {[%emt 0:00:04]} a5 {[%emt 0:00:25]} 10. Ne1 {[%emt 0:02:00]} Be6 {[%emt 0:02:15]} 11. Nd5 {[%emt 0:00:05]} Rb8 {[%emt 0:05:34]} 12. Bg5 {[%emt 0:02:18]} f6 {[%emt 0:00:40]} 13. Bd2 {[%emt 0:00:05]} b5 {[%emt 0:04:11]} 14. b3 {[%emt 0:01:25]} Bf7 {[%emt 0:08:21]} 15. Nxe7+ {[%emt 0:04:20]} Nxe7 {[%emt 0:00:07]} 16. Nc2 {[%emt 0:00:28]} a4 {[%emt 0:13:17]} 17. Ne3 {[%emt 0:01:56]} Bh6 {[%emt 0:04:45]} 18. bxa4 {[%emt 0:01:29]} Bxe3 {[%emt 0:01:09]} 19. fxe3 {[%emt 0:00:10]} bxc4 {[%emt 0:00:21]} 20. Rxf6 {[%emt 0:31:30]} cxd3 {[%emt 0:06:22]} 21. exd3 {[%emt 0:02:46]} Rxb1 {[%emt 0:03:13]} 22. Qxb1 {[%emt 0:00:06]} Nf5 {[%emt 0:00:33]} 23. Rxf7 {[%emt 0:00:06]} Kxf7 {[%emt 0:00:18]} 24. Bd5+ {[%emt 0:03:43]} Kg7 {[%emt 0:02:16]} 25. a5 {[%emt 0:01:03]} Qf6 {[%emt 0:06:59]} 26. Qf1 {[%emt 0:11:25]} Qg5 {[%emt 0:11:57]} 27. a6 {[%emt 0:00:09]} Nxg3 {[%emt 0:04:39]} 28. Qxf8+ {[%emt 0:04:58]} Kxf8 {[%emt 0:00:05]} 29. hxg3 {[%emt 0:00:05]} Qe7 {[%emt 0:01:06]} 30. Bb7 {[%emt 0:02:14]} Qc7 {[%emt 0:01:03]} 31. a4 {[%emt 0:00:07]} Kf7 {[%emt 0:02:58]} 32. e4 {[%emt 0:01:06]} h5 {[%emt 0:02:16]} 33. Kg2 {[%emt 0:02:16]} Kf6 {[%emt 0:01:58]} 34. Kh2 {[%emt 0:01:08]} g5 {[%emt 0:00:26]} 35. Kg2 {[%emt 0:00:04]} Kg6 {[%emt 0:00:37]} 36. Be1 {[%emt 0:00:04]} Qd7 {[%emt 0:00:40]} 37. a5 {[%emt 0:01:12]} Qc7 {[%emt 0:00:42]} 38. Kf3 {[%emt 0:03:43]} Qf7+ {[%emt 0:01:16]} 39. Ke3 {[%emt 0:00:26]} Qd7 {[%emt 0:01:03]} 40. Kf3 {[%emt 0:02:43]} Kf6 {[%emt 0:03:37]} 41. Ke3 {[%emt 0:32:20]} Ke7 {[%emt 0:33:07]} 42. Bd5 {[%emt 0:02:19]} Kd8 {[%emt 0:04:38]} 43. Kf2 {[%emt 0:00:04]} Ke7 {[%emt 0:00:00]} 44. Kg2 {[%emt 0:00:00]} Kf6 {[%emt 0:00:00]} 45. Kf3 {[%emt 0:00:00]} Kg6 {[%emt 0:00:00]} 46. Kg2 {[%emt 0:00:00]} Qa7 {[%emt 0:00:00]} 47. Bb7 {[%emt 0:00:00]} Qb8 {[%emt 0:00:00]} 48. Bd5 {[%emt 0:00:00]} Qb2+ {[%emt 0:00:00]} 49. Bf2 {[%emt 0:00:00]} Qb8 {[%emt 0:00:00]} 50. Be1 {[%emt 0:00:00]} Qc7 {[%emt 0:00:00]} 51. Kf3 {[%emt 0:00:00]} Kh6 {[%emt 0:00:00]} 52. Bd2 {[%emt 0:00:00]} Kg6 {[%emt 0:00:00]} 53. Be1 {[%emt 0:00:00]} Qd7 {[%emt 0:00:00]} 54. Kg2 {[%emt 0:00:00]} Qh7 {[%emt 0:00:00]} 55. Bf2 {[%emt 0:00:00]} Qa7 {[%emt 0:03:35]} 56. Bb7 {[%emt 0:00:00]} Qb8 {[%emt 0:00:05]} 57. Bd5 {[%emt 0:00:00]} g4 {[%emt 0:01:59]} 58. Be1 {[%emt 0:00:00]} Qb2+ {[%emt 0:00:06]} 59. Bf2 {[%emt 0:00:00]} Qb8 {[%emt 0:00:06]} 60. Be1 {[%emt 0:00:00]} Kf6 {[%emt 0:00:21]} 61. Bd2 {[%emt 0:00:00]} Ke7 {[%emt 0:01:31]} 62. Bg5+ {[%emt 0:00:00]} Kd7 {[%emt 0:00:20]} 63. Kf1 {[%emt 0:00:00]} Kc7 {[%emt 0:01:45]} 64. Be7 {[%emt 0:00:00]} Kd7 {[%emt 0:01:19]} 65. Bg5 {[%emt 0:00:00]} Qb1+ {[%emt 0:00:24]} 66. Ke2 {[%emt 0:00:00]} Qb2+ {[%emt 0:00:11]} 67. Bd2 {[%emt 0:00:00]} Qb8 {[%emt 0:00:14]} 68. Bg5 {[%emt 0:00:00]} Qa7 {[%emt 0:00:42]} 69. Bb7 {[%emt 0:00:00]} Qb8 {[%emt 0:00:15]} 70. Bd5 {[%emt 0:00:00]} Qc7 {[%emt 0:00:29]} 71. Bf7 {[%emt 0:00:00]} Kc8 {[%emt 0:01:56]} 72. Bxh5 {[%emt 0:00:00]} Kb8 {[%emt 0:00:29]} 73. Bd2 {[%emt 0:00:00]} Qg7 {[%emt 0:00:33]} 74. Be1 {[%emt 0:00:00]} Ka7 {[%emt 0:00:11]} 75. Be8 {[%emt 0:00:00]} Kxa6 {[%emt 0:00:26]} 76. Kd1 {[%emt 0:00:00]} Qf8 {[%emt 0:00:36]} 77. Bd7 {[%emt 0:00:00]} Qf3+ {[%emt 0:00:04]} 78. Kc2 {[%emt 0:00:00]} Qe3 {[%emt 0:01:08]} 79. Bc8+ {[%emt 0:00:00]} Ka7 {[%emt 0:00:07]} 0-1

[Event "Czech Juniors Boys 2024"]
[Site "Jaromerice nad Rokytnou"]
[Date "2024.03.14"]
[Round "9.2"]
[White "Paseka, Matyas"]
[Black "Vilimek, Vit"]
[Result "1/2-1/2"]
[ECO "B33"]
[WhiteElo "2233"]
[BlackElo "2061"]
[Annotator "ChessBase"]
[PlyCount "87"]
[EventDate "2024.03.10"]
[EventType "tourn"]
[EventCountry "CZE"]
[SourceTitle "playchess.com"]
[Source "ChessBase"]
[SourceQuality "1"]
[TimeControl "40/5400+30:1800+30"]

1. e4 {[%emt 0:00:02]} c5 {[%emt 0:02:03]} 2. Nf3 {[%emt 0:00:06]} Nc6 {[%emt 0:00:04]} 3. d4 {[%emt 0:00:04]} cxd4 {[%emt 0:00:01]} 4. Nxd4 {[%emt 0:00:04]} Nf6 {[%emt 0:00:04]} 5. Nc3 {[%emt 0:00:05]} e5 {[%emt 0:00:03]} 6. Ndb5 {[%emt 0:00:05]} d6 {[%emt 0:00:02]} 7. Bg5 {[%emt 0:00:07]} a6 {[%emt 0:00:02]} 8. Na3 {[%emt 0:00:04]} b5 {[%emt 0:00:02]} 9. Nd5 {[%emt 0:00:04]} Be7 {[%emt 0:00:03]} 10. Bxf6 {[%emt 0:00:06]} Bxf6 {[%emt 0:00:02]} 11. c3 {[%emt 0:00:05]} O-O {[%emt 0:00:05]} 12. Nc2 {[%emt 0:00:05]} Rb8 {[%emt 0:00:19]} 13. h4 {[%emt 0:00:10]} Be6 {[%emt 0:01:11]} 14. Nce3 {[%emt 0:05:31]} Qd7 {[%emt 0:08:00]} 15. Nxf6+ {[%emt 0:05:40]} gxf6 {[%emt 0:00:03]} 16. Qf3 {[%emt 0:02:12]} Qe7 {[%emt 0:21:49]} 17. Bd3 {[%emt 0:01:19]} b4 {[%emt 0:01:52]} 18. Nd5 {[%emt 0:29:08]} Bxd5 {[%emt 0:03:05]} 19. exd5 {[%emt 0:00:10]} e4 {[%emt 0:05:12]} 20. Bxe4 {[%emt 0:01:23]} Rfe8 {[%emt 0:08:47]} 21. Qg4+ {[%emt 0:04:05]} Kh8 {[%emt 0:03:30]} 22. dxc6 {[%emt 0:04:23]} Qxe4+ {[%emt 0:00:10]} 23. Qxe4 {[%emt 0:00:03]} Rxe4+ {[%emt 0:00:05]} 24. Kd2 {[%emt 0:00:07]} bxc3+ {[%emt 0:02:47]} 25. Kxc3 {[%emt 0:02:22]} Rc8 {[%emt 0:02:09]} 26. Kd3 {[%emt 0:13:26]} Rb4 {[%emt 0:10:49]} 27. b3 {[%emt 0:03:18]} Rxc6 {[%emt 0:00:38]} 28. g3 {[%emt 0:06:34]} Rc5 {[%emt 0:03:29]} 29. Rhd1 {[%emt 0:01:59]} Re5 {[%emt 0:08:41]} 30. Rac1 {[%emt 0:06:41]} Rb6 {[%emt 0:04:49]} 31. Rc7 {[%emt 0:01:59]} Kg7 {[%emt 0:01:01]} 32. Rdc1 {[%emt 0:00:08]} Rbb5 {[%emt 0:02:49]} 33. R1c2 {[%emt 0:04:55]} a5 {[%emt 0:06:40]} 34. Kd2 {[%emt 0:03:52]} Kg6 {[%emt 0:00:56]} 35. Rd7 {[%emt 0:01:58]} Rbd5+ {[%emt 0:00:14]} 36. Kc1 {[%emt 0:00:07]} h5 {[%emt 0:00:57]} 37. Kb2 {[%emt 0:00:38]} Re4 {[%emt 0:01:10]} 38. Ka3 {[%emt 0:00:57]} Re1 {[%emt 0:03:00]} 39. Kb2 {[%emt 0:04:21]} Re4 {[%emt 0:00:22]} 40. Rdc7 {[%emt 0:00:36]} f5 {[%emt 0:01:26]} 41. R7c4 {[%emt 0:03:08]} Kf6 {[%emt 0:08:30]} 42. Ka3 {[%emt 0:18:14]} Ke5 {[%emt 0:06:33]} 43. Rc7 {[%emt 0:00:26]} Kf6 {[%emt 0:01:27]} 44. R7c4 {[%emt 0:07:41]} 1/2-1/2

[Event "Czech Juniors Boys 2024"]
[Site "Jaromerice nad Rokytnou"]
[Date "2024.03.14"]
[Round "9.3"]
[White "Bokhnak, Timofey"]
[Black "Soucek, Petr"]
[Result "1-0"]
[ECO "B90"]
[WhiteElo "2241"]
[BlackElo "2209"]
[Annotator "RC"]
[PlyCount "129"]
[EventDate "2024.03.10"]
[EventType "tourn"]
[EventCountry "CZE"]
[SourceTitle "playchess.com"]
[Source "ChessBase"]
[SourceQuality "1"]
[TimeControl "40/5400+30:1800+30"]

1. e4 {[%emt 0:00:03]} c5 {[%emt 0:00:57]} 2. Nf3 {[%emt 0:00:13]} d6 {[%emt 0:00:05]} 3. d4 {[%emt 0:00:38]} cxd4 {[%emt 0:00:04]} 4. Nxd4 {[%emt 0:00:03]} Nf6 {[%emt 0:00:04]} 5. Nc3 {[%emt 0:00:08]} a6 {[%emt 0:00:08]} 6. Be3 {[%emt 0:00:29]} Ng4 {[%emt 0:00:24]} 7. Bg5 {[%emt 0:00:44]} h6 {[%emt 0:00:06]} 8. Bh4 {[%emt 0:00:24]} g5 {[%emt 0:00:08]} 9. Bg3 {[%emt 0:00:09]} Bg7 {[%emt 0:02:37]} 10. h3 {[%emt 0:01:19]} Nf6 {[%emt 0:00:39]} 11. Bd3 {[%emt 0:07:16]} Nc6 {[%emt 0:03:02]} 12. Nxc6 {[%emt 0:11:19]} bxc6 {[%emt 0:00:04]} 13. e5 {[%emt 0:00:14]} Nd5 {[%emt 0:06:06]} 14. Nxd5 {[%emt 0:02:04]} cxd5 {[%emt 0:00:23]} 15. Qe2 {[%emt 0:06:01]} O-O {[%emt 0:03:19]} 16. f4 {[%emt 0:08:55]} gxf4 {[%emt 0:12:11]} 17. Bxf4 {[%emt 0:00:14]} Qb6 {[%emt 0:00:48]} 18. c3 {[%emt 0:08:51]} Rb8 {[%emt 0:01:13]} 19. Rb1 {[%emt 0:01:44]} dxe5 {[%emt 0:11:02]} 20. Bxe5 {[%emt 0:00:06]} Bxe5 {[%emt 0:00:13]} 21. Qxe5 {[%emt 0:00:06]} Qe6 {[%emt 0:01:46]} 22. Qxe6 {[%emt 0:00:16]} fxe6 {[%emt 0:01:30]} 23. Rf1 {[%emt 0:06:22]} Rxf1+ {[%emt 0:01:22]} 24. Bxf1 {[%emt 0:00:30]} Kf7 {[%emt 0:01:23]} 25. Kd2 {[%emt 0:00:17]} e5 {[%emt 0:00:39]} 26. b4 {[%emt 0:01:15]} Ke6 {[%emt 0:12:18]} 27. a4 {[%emt 0:03:51]} a5 {[%emt 0:07:26]} 28. Bb5 {[%emt 0:01:35]} axb4 {[%emt 0:00:38]} 29. Rxb4 {[%emt 0:00:07]} Kf6 {[%emt 0:02:53]} 30. Rh4 {[%emt 0:19:14]} Kg5 {[%emt 0:00:21]} 31. Rb4 {[%emt 0:00:04]} Kf6 {[%emt 0:00:04]} 32. Ke3 {[%emt 0:11:35]} Bf5 {[%emt 0:08:14]} 33. g4 {[%emt 0:02:09]} Be6 {[%emt 0:00:53]} 34. Bc6 {[%emt 0:03:22]} d4+ {[%emt 0:02:50]} 35. Kd3 {[%emt 0:00:39]} Rc8 {[%emt 0:01:51]} 36. Rb6 {[%emt 0:00:11]} dxc3 {[%emt 0:01:49]} 37. Kc2 {[%emt 0:00:57]} Kf7 {[%emt 0:04:33]} 38. a5 {[%emt 0:02:30]} Rc7 {[%emt 0:09:45]} 39. a6 {[%emt 0:00:04]} Bc4 {[%emt 0:01:38]} 40. Bb7 {[%emt 0:02:09]} Bd3+ {[%emt 0:00:18]} 41. Kc1 {[%emt 0:31:00]} Bxa6 {[%emt 0:07:03]} 42. Bd5+ {[%emt 0:00:00]} Kg7 {[%emt 0:06:21]} 43. Rxa6 {[%emt 0:00:00]} Rd7 {[%emt 0:01:00]} 44. Be4 {[%emt 0:00:00]} h5 {[%emt 0:02:11]} 45. g5 {[%emt 0:00:00]} Rd4 {[%emt 0:00:31]} 46. Bf5 {[%emt 0:00:00]} Rf4 {[%emt 0:00:50]} 47. Bd7 {[%emt 0:00:00]} Rd4 {[%emt 0:00:41]} 48. Bc8 {[%emt 0:00:00]} Rc4 {[%emt 0:01:03]} 49. Be6 {[%emt 0:00:00]} Rf4 {[%emt 0:00:44]} 50. Ra5 {[%emt 0:00:00]} Re4 {[%emt 0:00:42]} 51. Bf5 {[%emt 0:00:00]} Re3 {[%emt 0:00:16]} 52. Kc2 {[%emt 0:00:00]} Rg3 {[%emt 0:00:43]} 53. h4 {[%emt 0:00:00]} Re3 {[%emt 0:00:23]} 54. Rc5 {[%emt 0:00:00]} Kf7 {[%emt 0:01:07]} 55. Rxc3 {[%emt 0:00:00]} Re2+ {[%emt 0:00:05]} 56. Kd3 {[%emt 0:00:00]} Rf2 {[%emt 0:00:09]} 57. Ke4 {[%emt 0:00:00]} Rf4+ {[%emt 0:00:23]} 58. Kxe5 {[%emt 0:00:00]} Rxh4 {[%emt 0:00:05]} 59. g6+ {[%emt 0:00:00]} Kg7 {[%emt 0:00:12]} 60. Rc7 {[%emt 0:00:00]} Kf8 {[%emt 0:00:36]} 61. Rc8+ {[%emt 0:00:00]} Kg7 {[%emt 0:00:07]} 62. Re8 {[%emt 0:00:00]} Rh1 {[%emt 0:00:20]} 63. Rxe7+ {[%emt 0:00:00]} Kf8 {[%emt 0:00:05]} 64. Kf6 {[%emt 0:00:00]} Rg1 {[%emt 0:00:30]} 65. g7+ {[%emt 0:00:00]} 1-0

[Event "Czech Juniors Boys 2024"]
[Site "Jaromerice nad Rokytnou"]
[Date "2024.03.14"]
[Round "9.4"]
[White "Bohacek, Jan Andrej"]
[Black "Seidl, Jan"]
[Result "0-1"]
[ECO "A30"]
[WhiteElo "2140"]
[BlackElo "2230"]
[Annotator "RC"]
[PlyCount "75"]
[EventDate "2024.03.10"]
[EventType "tourn"]
[EventCountry "CZE"]
[SourceTitle "playchess.com"]
[Source "ChessBase"]
[SourceQuality "1"]
[TimeControl "40/5400+30:1800+30"]

1. Nf3 {[%emt 0:00:20]} Nf6 {[%emt 0:00:37]} 2. e3 {[%emt 0:01:11]} c5 {[%emt 0:00:53]} 3. b3 {[%emt 0:00:21]} g6 {[%emt 0:00:22]} 4. Bb2 {[%emt 0:01:19]} Bg7 {[%emt 0:00:08]} 5. c4 {[%emt 0:03:25]} O-O {[%emt 0:00:15]} 6. d4 {[%emt 0:02:49]} cxd4 {[%emt 0:00:28]} 7. Nxd4 {[%emt 0:04:22]} d5 {[%emt 0:04:40]} 8. Nd2 {[%emt 0:05:57]} Nc6 {[%emt 0:13:46]} 9. Be2 {[%emt 0:14:32]} Re8 {[%emt 0:20:26]} 10. cxd5 {[%emt 0:19:12]} Nxd4 {[%emt 0:00:07]} 11. Bxd4 {[%emt 0:00:16]} Nxd5 {[%emt 0:00:11]} 12. Bxg7 {[%emt 0:01:34]} Kxg7 {[%emt 0:00:05]} 13. Bf3 {[%emt 0:01:04]} e5 {[%emt 0:02:01]} 14. O-O {[%emt 0:02:41]} Be6 {[%emt 0:08:06]} 15. Rc1 {[%emt 0:05:44]} Qe7 {[%emt 0:06:48]} 16. Qe2 {[%emt 0:07:09]} Red8 {[%emt 0:04:55]} 17. Rfd1 {[%emt 0:03:36]} Rac8 {[%emt 0:03:38]} 18. Nb1 {[%emt 0:02:34]} Rxc1 {[%emt 0:03:07]} 19. Rxc1 {[%emt 0:00:15]} Qb4 {[%emt 0:01:47]} 20. Qb2 {[%emt 0:10:05]} f6 {[%emt 0:00:16]} 21. Rd1 {[%emt 0:01:24]} Nxe3 {[%emt 0:08:01]} 22. Rc1 {[%emt 0:07:02]} Nf5 {[%emt 0:00:35]} 23. h3 {[%emt 0:03:17]} Nd4 {[%emt 0:00:50]} 24. Be4 {[%emt 0:01:01]} Rd7 {[%emt 0:03:08]} 25. Nc3 {[%emt 0:00:43]} f5 {[%emt 0:02:00]} 26. Bb1 {[%emt 0:00:28]} Rc7 {[%emt 0:00:47]} 27. Kh2 {[%emt 0:00:47]} Qd6 {[%emt 0:02:24]} 28. Kh1 {[%emt 0:00:43]} g5 {[%emt 0:06:14]} 29. Rd1 {[%emt 0:00:10]} Qc5 {[%emt 0:01:14]} 30. Rc1 {[%emt 0:00:12]} Qa5 {[%emt 0:00:29]} 31. b4 {[%emt 0:00:24]} Qb6 {[%emt 0:00:45]} 32. Re1 {[%emt 0:00:23]} Kf6 {[%emt 0:00:29]} 33. Na4 {[%emt 0:00:31]} Qb5 {[%emt 0:00:40]} 34. Nc3 {[%emt 0:00:38]} Qc6 {[%emt 0:01:01]} 35. Ne2 {[%emt 0:00:21]} Qd6 {[%emt 0:04:11]} 36. Ng3 {[%emt 0:00:44]} Qd5 {[%emt 0:00:57]} 37. h4 {[%emt 0:01:11]} gxh4 {[%emt 0:00:37]} 38. Be4 {[%emt 0:00:00]} 0-1

[Event "Czech Juniors Boys 2024"]
[Site "Jaromerice nad Rokytnou"]
[Date "2024.03.14"]
[Round "9.5"]
[White "Hak, David"]
[Black "Jun, Rudolf"]
[Result "0-1"]
[ECO "B33"]
[WhiteElo "2283"]
[BlackElo "2243"]
[Annotator "TA"]
[PlyCount "116"]
[EventDate "2024.03.10"]
[EventType "tourn"]
[EventCountry "CZE"]
[SourceTitle "playchess.com"]
[Source "ChessBase"]
[SourceQuality "1"]
[TimeControl "40/5400+30:1800+30"]

{[%evp 20,116,28,12,25,10,51,-7,75,87,60,0,0,0,0,0,0,-29,0,0,0,0,11,10,32,0,0,-35,19,29,16,31,12,18,29,19,35,33,21,27,25,0,0,-11,0,-13,-13,-18,-10,-18,-18,-233,-250,-250,-251,-281,-267,-340,-361,-307,-304,-377,-318,-385,-389,-394,-390,-368,-362,-356,-352,-325,-267,-516,-494,-648,-606,-704,-1034,-1728,-995,-1735,-753,-954,-865,-1162,-1116,-908,-823,-5165,-5085,-29977,-29978,-29979,-29980,-29980,-29981,-29980,-29980]} 1. e4 {[%emt 0:03:00]} c5 {[%emt 0:00:10]} 2. Nf3 {[%emt 0:00:06]} Nc6 {[%emt 0:00:07]} 3. d4 {[%emt 0:00:07]} cxd4 {[%emt 0:00:06]} 4. Nxd4 {[%emt 0:00:08]} Nf6 {[%emt 0:00:08]} 5. Nc3 {[%emt 0:00:10]} e5 {[%emt 0:00:13]} 6. Ndb5 {[%emt 0:00:07]} d6 {[%emt 0:00:07]} 7. Nd5 {[%emt 0:00:05]} Nxd5 {[%emt 0:00:06]} 8. exd5 {[%emt 0:00:09]} Ne7 {[%emt 0:00:26]} 9. c4 {[%emt 0:00:09]} Ng6 {[%emt 0:00:35]} 10. Qa4 {[%emt 0:01:22]} Bd7 {[%emt 0:03:37]} 11. Qb4 {[%emt 0:00:07]} Bf5 {[%emt 0:12:38]} 12. Be3 {[%emt 0:23:30]} b6 {[%emt 0:19:00]} 13. a4 {[%emt 0:22:07]} ({Better is} 13. h4 $14) 13... a6 {[%emt 0:01:50]} (13... Be7 $11 {remains equal.}) 14. Nc3 $16 {[%emt 0:02:30]} Rb8 {[%emt 0:00:29]} 15. Be2 {[%emt 0:06:08]} (15. a5 $14 bxa5 16. Qxa5) 15... Nf4 {[%emt 0:05:04]} 16. Bxf4 {[%emt 0:07:02]} exf4 {[%emt 0:00:08]} 17. O-O {[%emt 0:05:11]} Be7 {[%emt 0:02:12]} 18. Rad1 {[%emt 0:04:56]} Bf6 {[%emt 0:06:49]} 19. Bd3 {[%emt 0:01:53]} Bxd3 {[%emt 0:00:54]} 20. Rxd3 {[%emt 0:01:27]} O-O {[%emt 0:00:40]} 21. Ne2 {[%emt 0:00:34]} Re8 {[%emt 0:07:29]} 22. Qd2 {[%emt 0:04:23][%cal Oe2d4]} Re4 {[%emt 0:05:54]} 23. Nd4 {[%emt 0:02:03]} Bxd4 {[%emt 0:10:14]} (23... Qd7 $15) 24. Rxd4 $11 {[%emt 0:00:07]} Qe7 {[%emt 0:00:32]} 25. Rxe4 {[%emt 0:02:25]} Qxe4 {[%emt 0:00:02][%mdl 4096] Endgame. KQR-KQR} 26. Qb4 {[%emt 0:00:19]} Re8 {[%emt 0:02:53]} 27. Qxb6 {[%emt 0:07:50]} (27. Qxd6 Qxc4 28. h4 (28. Qxb6 Qxd5 29. Qxa6 h6 $16) 28... h6 $14) 27... Qxc4 {[%emt 0:01:54]} 28. Qxd6 {[%emt 0:00:35]} Qxa4 {[%emt 0:01:35]} 29. Qc7 {[%emt 0:01:46]} f3 $1 {[%emt 0:03:40]} 30. gxf3 {[%emt 0:01:03] [#] aiming for d6.} Qb5 {[%emt 0:04:03][%csl LRb2,LRd5]} (30... Qb3 31. Qc6 Kf8 32. d6 $14 (32. Qxa6 Qxd5 33. Qa3+ Kg8 $11)) 31. Qd6 {[%emt 0:03:49]} (31. d6 $5 Qg5+ $8 32. Kh1 $11) 31... h5 {[%emt 0:07:11][%cal Ob5d3]} 32. Rc1 {[%emt 0:00:27]} Qxb2 {[%emt 0:02:39]} 33. Qc6 {[%emt 0:00:23]} Rd8 {[%emt 0:00:56]} 34. Re1 {[%emt 0:00:01] Wards off Qe5} Qb5 {[%emt 0:00:48]} 35. Ra1 $2 {[%emt 0:01:27] White does not recover from this.} (35. Re5 $11 {and White is okay.}) 35... Rxd5 $19 {[%emt 0:01:16]} 36. Qxb5 {[%emt 0:00:29]} axb5 {[%emt 0:00:07] KR-KR} (36... Rxb5 37. Rxa6 g6 38. Kf1 $11) 37. Ra8+ {[%emt 0:00:18]} Kh7 {[%emt 0:00:07]} 38. Rb8 {[%emt 0:00:05]} Kg6 {[%emt 0:00:32]} 39. Kg2 {[%emt 0:00:12]} Rf5 {[%emt 0:01:55]} 40. Rb7 {[%emt 0:01:11]} Kg5 {[%emt 0:00:52]} 41. Re7 {[%emt 0:07:14]} Kf6 {[%emt 0:02:36]} 42. Re8 {[%emt 0:02:34]} g6 {[%emt 0:03:24]} 43. Kg3 {[%emt 0:02:44]} Rg5+ {[%emt 0:01:04]} 44. Kf4 {[%emt 0:04:30]} Rc5 {[%emt 0:00:44]} 45. Rb8 {[%emt 0:00:49]} Rc4+ {[%emt 0:00:37]} 46. Kg3 $2 {[%emt 0:01:15]} (46. Ke3 Rc3+ 47. Ke4) 46... h4+ {[%emt 0:00:28]} 47. Kh3 {[%emt 0:03:35]} b4 {[%emt 0:00:04]} 48. Rb7 {[%emt 0:02:17]} Ke6 {[%emt 0:00:20]} 49. Rb6+ {[%emt 0:02:11]} Ke5 {[%emt 0:00:30]} 50. Kg2 {[%emt 0:03:04]} Rf4 {[%emt 0:00:33]} (50... Kd4 $142 51. Rb7 Kc3) 51. Kf1 {[%emt 0:00:12]} Kd5 {[%emt 0:00:28]} ({Weaker is} 51... Rxf3 52. Rxb4 h3 53. Rb5+ Kf6 54. Ke2 $17) 52. Ke2 {[%emt 0:00:22]} Kc4 {[%emt 0:00:39]} 53. Ke3 {[%emt 0:00:28]} g5 {[%emt 0:00:15] [#] Hoping for ...Kc3.} 54. Rb8 {[%emt 0:01:44]} Kc3 {[%emt 0:00:16] Threatens to win with ...f6.} 55. Ke2 {[%emt 0:01:03]} b3 {[%emt 0:00:49] Black mates.} 56. Rd8 {[%emt 0:00:33]} b2 {[%emt 0:00:37]} 57. Rd3+ {[%emt 0:00:09]} Kc2 {[%emt 0:00:31]} 58. Rd2+ {[%emt 0:00:46]} Kb3 {[%emt 0:00:11] Weighted Error Value: White=0.68/Black=0.24 (precise) .  Loses game:     	White=1     	---        Mistake:       	White=3     	Black=2      Inaccurate:     	White=4     	Black=2      OK:         	White=11    	Black=13     Best:        	White=1     	Black=5      Strong:       	---       	Black=1} 0-1

[Event "Czech Juniors Boys 2024"]
[Site "Jaromerice nad Rokytnou"]
[Date "2024.03.14"]
[Round "9.6"]
[White "Frank, Adam"]
[Black "Jares, Michal"]
[Result "1/2-1/2"]
[ECO "B15"]
[WhiteElo "2284"]
[BlackElo "2347"]
[Annotator "RC"]
[PlyCount "64"]
[EventDate "2024.03.10"]
[EventType "tourn"]
[EventCountry "CZE"]
[SourceTitle "playchess.com"]
[Source "ChessBase"]
[SourceQuality "1"]
[TimeControl "40/5400+30:1800+30"]

1. e4 {[%emt 0:00:06]} c6 {[%emt 0:00:02]} 2. d4 {[%emt 0:00:04]} d5 {[%emt 0:00:03]} 3. Nd2 {[%emt 0:00:04]} dxe4 {[%emt 0:00:11]} 4. Nxe4 {[%emt 0:00:03]} Nf6 {[%emt 0:00:16]} 5. Nxf6+ {[%emt 0:00:04]} exf6 {[%emt 0:00:06]} 6. c3 {[%emt 0:00:03]} g6 {[%emt 0:00:09]} 7. h4 {[%emt 0:03:53]} h5 {[%emt 0:00:18]} 8. Bd3 {[%emt 0:09:32]} Bg7 {[%emt 0:00:20]} 9. Ne2 {[%emt 0:01:23]} O-O {[%emt 0:00:44]} 10. O-O {[%emt 0:00:26]} Re8 {[%emt 0:01:22]} 11. Be3 {[%emt 0:02:36]} Bg4 {[%emt 0:04:29]} 12. Qd2 {[%emt 0:01:27]} Nd7 {[%emt 0:01:21]} 13. Rfe1 {[%emt 0:02:09]} Bxe2 {[%emt 0:01:28]} 14. Rxe2 {[%emt 0:01:43]} f5 {[%emt 0:00:26]} 15. Rae1 {[%emt 0:01:09]} Nf6 {[%emt 0:04:36]} 16. f3 {[%emt 0:09:03]} Qd7 {[%emt 0:02:16]} 17. Bc4 {[%emt 0:02:24]} Re7 {[%emt 0:05:58]} 18. Bg5 {[%emt 0:06:29]} Rae8 {[%emt 0:01:22]} 19. Qf4 {[%emt 0:04:38]} Rxe2 {[%emt 0:03:32]} 20. Rxe2 {[%emt 0:00:04]} b5 {[%emt 0:13:06]} 21. Rxe8+ {[%emt 0:04:35]} Qxe8 {[%emt 0:00:37]} 22. Bb3 {[%emt 0:00:15]} Nd5 {[%emt 0:17:37]} 23. Bxd5 {[%emt 0:04:31]} cxd5 {[%emt 0:02:31]} 24. Qd6 {[%emt 0:00:15]} Kh7 {[%emt 0:00:35]} 25. Kf2 {[%emt 0:09:17]} Qe6 {[%emt 0:00:51]} 26. Qb8 {[%emt 0:00:40]} Qd7 {[%emt 0:03:15]} 27. Qa8 {[%emt 0:05:04]} b4 {[%emt 0:02:57]} 28. a3 {[%emt 0:13:19]} bxa3 {[%emt 0:02:10]} 29. bxa3 {[%emt 0:00:04]} Qa4 {[%emt 0:03:03]} 30. Qxd5 {[%emt 0:00:05]} Qc2+ {[%emt 0:00:14]} 31. Kg3 {[%emt 0:04:08]} Qxc3 {[%emt 0:01:21]} 32. Qxf7 {[%emt 0:00:06]} Qxd4 {[%emt 0:00:39]} 1/2-1/2